[Event "*** Titled Tuesday Blitz"]
[Site "Chess.com"]
[Date "2020.12.29"]
[Round "5"]
[White "szachuspl"]
[Black "AdarshIsMe"]
[Result "1-0"]
[WhiteElo "2479"]
[BlackElo "2199"]
[TimeControl "180+1"]
[EndTime "10:52:47 PST"]
[Termination "szachuspl won by resignation"]

1. d4 {[%clk 0:03:00.9]} 1... Nf6 {[%clk 0:02:59.6]} 2. c4 {[%clk 0:03:00.8]}
2... e6 {[%clk 0:02:59.8]} 3. Nf3 {[%clk 0:03:00.7]} 3... Bb4+ {[%clk
0:02:59.9]} 4. Nbd2 {[%clk 0:03:00.5]} 4... O-O {[%clk 0:02:59.3]} 5. a3 {[%clk
0:03:00.5]} 5... Bxd2+ {[%clk 0:02:58.7]} 6. Qxd2 {[%clk 0:03:00.6]} 6... d6
{[%clk 0:02:59.6]} 7. g3 {[%clk 0:03:00.2]} 7... Nbd7 {[%clk 0:02:58.7]} 8. Bg2
{[%clk 0:03:00.6]} 8... e5 {[%clk 0:02:58.8]} 9. O-O {[%clk 0:02:57.7]} 9... e4
{[%clk 0:02:50.2]} 10. Ne1 {[%clk 0:02:53.1]} 10... Re8 {[%clk 0:02:46]} 11. b3
{[%clk 0:02:53]} 11... Nf8 {[%clk 0:02:43]} 12. Nc2 {[%clk 0:02:53.1]} 12... Bf5
{[%clk 0:02:38]} 13. Ne3 {[%clk 0:02:52.7]} 13... Bg6 {[%clk 0:02:38.6]} 14. Bb2
{[%clk 0:02:52.6]} 14... Qd7 {[%clk 0:02:26.6]} 15. h3 {[%clk 0:02:50.7]} 15...
c6 {[%clk 0:02:19.4]} 16. d5 {[%clk 0:02:49.7]} 16... Rad8 {[%clk 0:02:12.9]}
17. dxc6 {[%clk 0:02:39.7]} 17... bxc6 {[%clk 0:02:11.9]} 18. Rfd1 {[%clk
0:02:40]} 18... Ne6 {[%clk 0:01:52.2]} 19. b4 {[%clk 0:02:38.7]} 19... Ng5
{[%clk 0:01:49.2]} 20. Kh2 {[%clk 0:02:36.9]} 20... Qe7 {[%clk 0:01:43.7]} 21.
Qc3 {[%clk 0:02:31.2]} 21... h5 {[%clk 0:01:40.1]} 22. h4 {[%clk 0:02:27.1]}
22... Ne6 {[%clk 0:01:36.2]} 23. Bh3 {[%clk 0:02:26.9]} 23... Qc7 {[%clk
0:01:24.8]} 24. Rac1 {[%clk 0:02:22.6]} 24... Rd7 {[%clk 0:01:15]} 25. b5 {[%clk
0:02:17.8]} 25... cxb5 {[%clk 0:01:13.5]} 26. cxb5 {[%clk 0:02:17.8]} 26... Qxc3
{[%clk 0:01:05.4]} 27. Bxc3 {[%clk 0:02:18.4]} 27... Rc8 {[%clk 0:01:00.7]} 28.
Bxf6 {[%clk 0:02:15.9]} 28... Rxc1 {[%clk 0:00:58.8]} 29. Rxc1 {[%clk
0:02:16.2]} 29... gxf6 {[%clk 0:00:59.7]} 30. Nd5 {[%clk 0:02:16.5]} 30... Kg7
{[%clk 0:00:58.7]} 31. e3 {[%clk 0:02:14.6]} 31... f5 {[%clk 0:00:56.8]} 32. Rc8
{[%clk 0:02:08.7]} 32... Nc5 {[%clk 0:00:55.8]} 33. Bf1 {[%clk 0:01:56.6]} 33...
f6 {[%clk 0:00:47.7]} 34. Be2 {[%clk 0:01:52.8]} 34... Bf7 {[%clk 0:00:45.7]}
35. Nf4 {[%clk 0:01:51.9]} 35... Kh6 {[%clk 0:00:43.5]} 36. Kg2 {[%clk
0:01:41.4]} 36... d5 {[%clk 0:00:38.5]} 37. Rxc5 {[%clk 0:01:39.5]} 37... d4
{[%clk 0:00:37.9]} 38. exd4 {[%clk 0:01:39.2]} 1-0

[Event "*** Titled Tuesday Blitz"]
[Site "Chess.com"]
[Date "2020.12.29"]
[Round "5"]
[White "TokChess"]
[Black "BobbySteen89"]
[Result "1-0"]
[WhiteElo "2474"]
[BlackElo "2117"]
[TimeControl "180+1"]
[EndTime "10:52:49 PST"]
[Termination "TokChess won by resignation"]

1. e4 {[%clk 0:03:00.9]} 1... c5 {[%clk 0:02:59.4]} 2. Nf3 {[%clk 0:02:55]} 2...
d6 {[%clk 0:02:58.7]} 3. d3 {[%clk 0:02:54.6]} 3... Nf6 {[%clk 0:02:56.9]} 4.
Nbd2 {[%clk 0:02:55.1]} 4... Nc6 {[%clk 0:02:49.5]} 5. g3 {[%clk 0:02:51.8]}
5... e6 {[%clk 0:02:46.7]} 6. Bg2 {[%clk 0:02:49.6]} 6... Be7 {[%clk 0:02:47.2]}
7. O-O {[%clk 0:02:49.9]} 7... O-O {[%clk 0:02:47.2]} 8. Re1 {[%clk 0:02:50.3]}
8... Bd7 {[%clk 0:02:41.6]} 9. c3 {[%clk 0:02:48.9]} 9... d5 {[%clk 0:02:22.2]}
10. e5 {[%clk 0:02:45.9]} 10... Ne8 {[%clk 0:02:22.4]} 11. Nf1 {[%clk
0:02:46.2]} 11... f5 {[%clk 0:02:11.4]} 12. exf6 {[%clk 0:02:44.9]} 12... Bxf6
{[%clk 0:02:08.9]} 13. Ne3 {[%clk 0:02:42.9]} 13... Nd6 {[%clk 0:02:05.5]} 14.
Ng4 {[%clk 0:02:37.9]} 14... Qc7 {[%clk 0:01:42.9]} 15. Bf4 {[%clk 0:02:28.9]}
15... h5 {[%clk 0:01:36.2]} 16. Nxf6+ {[%clk 0:02:28.2]} 16... Rxf6 {[%clk
0:01:36.2]} 17. Ne5 {[%clk 0:02:27.6]} 17... Rxf4 {[%clk 0:01:22.4]} 18. gxf4
{[%clk 0:02:23.7]} 18... Nf5 {[%clk 0:01:22.3]} 19. Qxh5 {[%clk 0:02:21.3]}
19... Be8 {[%clk 0:01:16.8]} 20. Qg5 {[%clk 0:02:19.7]} 20... d4 {[%clk
0:01:07.6]} 21. c4 {[%clk 0:02:07.5]} 21... Nb4 {[%clk 0:01:03.9]} 22. Re2
{[%clk 0:02:01.9]} 22... a5 {[%clk 0:00:57]} 23. a3 {[%clk 0:02:01.9]} 23... Nc6
{[%clk 0:00:52]} 24. Rae1 {[%clk 0:02:01.7]} 24... Nd8 {[%clk 0:00:44]} 25. Bh3
{[%clk 0:01:42.2]} 25... Nd6 {[%clk 0:00:28.9]} 26. Ng4 {[%clk 0:01:26.9]} 26...
Nf5 {[%clk 0:00:28]} 27. Nf6+ {[%clk 0:01:25.5]} 27... Kf8 {[%clk 0:00:28.7]}
28. Bxf5 {[%clk 0:01:24.2]} 1-0

[Event "*** Titled Tuesday Blitz"]
[Site "Chess.com"]
[Date "2020.12.29"]
[Round "5"]
[White "KyrgyzFighter"]
[Black "nubair1198"]
[Result "0-1"]
[WhiteElo "2383"]
[BlackElo "2728"]
[TimeControl "180+1"]
[EndTime "10:52:50 PST"]
[Termination "nubair1198 won by checkmate"]

1. c4 {[%clk 0:03:00.9]} 1... c6 {[%clk 0:00:35]} 2. Nc3 {[%clk 0:03:00.2]} 2...
d5 {[%clk 0:00:33]} 3. d4 {[%clk 0:03:00.6]} 3... dxc4 {[%clk 0:00:30.1]} 4. e4
{[%clk 0:03:00.2]} 4... b5 {[%clk 0:00:28.9]} 5. a4 {[%clk 0:02:57.3]} 5... b4
{[%clk 0:00:28.7]} 6. Na2 {[%clk 0:02:57.7]} 6... Nf6 {[%clk 0:00:29]} 7. Bxc4
{[%clk 0:02:50]} 7... Nxe4 {[%clk 0:00:27.7]} 8. Nxb4 {[%clk 0:02:44.4]} 8... e5
{[%clk 0:00:25]} 9. Qf3 {[%clk 0:02:37]} 9... Bxb4+ {[%clk 0:00:23.8]} 10. Kf1
{[%clk 0:02:37.2]} 10... Nd6 {[%clk 0:00:21.7]} 11. Bb3 {[%clk 0:02:34.1]} 11...
exd4 {[%clk 0:00:15.4]} 12. Ne2 {[%clk 0:02:34.4]} 12... Ba6 {[%clk 0:00:13.8]}
13. Bf4 {[%clk 0:02:31.8]} 13... d3 {[%clk 0:00:12.4]} 14. Nc3 {[%clk
0:02:30.7]} 14... O-O {[%clk 0:00:11.8]} 15. Kg1 {[%clk 0:02:27.4]} 15... Qf6
{[%clk 0:00:10.6]} 16. h3 {[%clk 0:02:26.3]} 16... Nd7 {[%clk 0:00:10.2]} 17.
Qg3 {[%clk 0:02:25.1]} 17... Bxc3 {[%clk 0:00:10.1]} 18. bxc3 {[%clk 0:02:24.9]}
18... Ne4 {[%clk 0:00:10.7]} 19. Qe3 {[%clk 0:02:21.7]} 19... Qxc3 {[%clk
0:00:10.8]} 20. Rb1 {[%clk 0:02:20.8]} 20... Ndc5 {[%clk 0:00:10]} 21. Kh2
{[%clk 0:02:19.8]} 21... Rfe8 {[%clk 0:00:09.4]} 22. Ba2 {[%clk 0:02:18]} 22...
d2 {[%clk 0:00:09]} 23. f3 {[%clk 0:02:08]} 23... Qxe3 {[%clk 0:00:09]} 24. Bxe3
{[%clk 0:02:08.5]} 24... Nc3 {[%clk 0:00:09.9]} 25. Bxc5 {[%clk 0:02:09.1]}
25... Nxa2 {[%clk 0:00:09.8]} 26. Bd4 {[%clk 0:02:07.5]} 26... Rad8 {[%clk
0:00:09.3]} 27. Bb2 {[%clk 0:02:07.9]} 27... Be2 {[%clk 0:00:09.5]} 28. Ra1
{[%clk 0:02:07.1]} 28... Nb4 {[%clk 0:00:09.3]} 29. Rhd1 {[%clk 0:02:06.9]}
29... Bxd1 {[%clk 0:00:09.1]} 30. Rxd1 {[%clk 0:02:07.8]} 30... Re1 {[%clk
0:00:09.5]} 31. Rxd2 {[%clk 0:02:08.7]} 31... Rxd2 {[%clk 0:00:09.1]} 32. Bc3
{[%clk 0:02:09.6]} 32... Ree2 {[%clk 0:00:08.6]} 33. Bxd2 {[%clk 0:02:09.8]}
33... Rxd2 {[%clk 0:00:09.1]} 34. a5 {[%clk 0:02:10.7]} 34... Nd5 {[%clk
0:00:09.6]} 35. a6 {[%clk 0:02:11.6]} 35... c5 {[%clk 0:00:10.5]} 36. Kg3 {[%clk
0:02:12.4]} 36... c4 {[%clk 0:00:11.4]} 37. f4 {[%clk 0:02:13.1]} 37... Nf6
{[%clk 0:00:11.8]} 38. f5 {[%clk 0:02:14]} 38... c3 {[%clk 0:00:12.6]} 39. Kf4
{[%clk 0:02:13.6]} 39... c2 {[%clk 0:00:13.5]} 40. g4 {[%clk 0:02:14.5]} 40...
c1=Q {[%clk 0:00:14.2]} 41. g5 {[%clk 0:02:15.4]} 41... Rf2+ {[%clk 0:00:14.4]}
42. Ke5 {[%clk 0:02:15.6]} 42... Qc5# {[%clk 0:00:14]} 0-1

[Event "*** Titled Tuesday Blitz"]
[Site "Chess.com"]
[Date "2020.12.29"]
[Round "5"]
[White "Alekseyviktorovich"]
[Black "DarZay"]
[Result "1-0"]
[WhiteElo "2315"]
[BlackElo "2103"]
[TimeControl "180+1"]
[EndTime "10:52:51 PST"]
[Termination "Alekseyviktorovich won by resignation"]

1. e4 {[%clk 0:03:00.9]} 1... c5 {[%clk 0:02:59.4]} 2. Nf3 {[%clk 0:03:00.4]}
2... d6 {[%clk 0:02:58.9]} 3. d4 {[%clk 0:02:59.8]} 3... cxd4 {[%clk 0:02:59.3]}
4. Nxd4 {[%clk 0:02:59.7]} 4... Nf6 {[%clk 0:02:59.5]} 5. Nc3 {[%clk 0:02:59.7]}
5... Nc6 {[%clk 0:02:59.8]} 6. Nxc6 {[%clk 0:02:54.6]} 6... bxc6 {[%clk
0:02:59.3]} 7. e5 {[%clk 0:02:55]} 7... dxe5 {[%clk 0:02:41.2]} 8. Qxd8+ {[%clk
0:02:54.2]} 8... Kxd8 {[%clk 0:02:40.8]} 9. Bc4 {[%clk 0:02:54.8]} 9... e6
{[%clk 0:02:37.2]} 10. Bg5 {[%clk 0:02:52.6]} 10... Bb4 {[%clk 0:02:34.7]} 11.
O-O-O+ {[%clk 0:02:52.3]} 11... Kc7 {[%clk 0:02:33.6]} 12. Na4 {[%clk 0:02:47]}
12... Nd5 {[%clk 0:02:27.5]} 13. a3 {[%clk 0:02:40]} 13... Bd6 {[%clk
0:02:25.7]} 14. Be2 {[%clk 0:02:33.5]} 14... f6 {[%clk 0:02:23.1]} 15. Bd2
{[%clk 0:02:32.8]} 15... Bd7 {[%clk 0:02:20.7]} 16. c4 {[%clk 0:02:32.1]} 16...
c5 {[%clk 0:02:05.7]} 17. Ba5+ {[%clk 0:02:23.5]} 17... Kb7 {[%clk 0:01:50.2]}
18. cxd5 {[%clk 0:02:06.3]} 18... Bxa4 {[%clk 0:01:48.7]} 19. dxe6 {[%clk
0:01:56.8]} 19... Bxd1 {[%clk 0:01:47.2]} 20. Rxd1 {[%clk 0:01:56]} 20... Rad8
{[%clk 0:01:36.4]} 21. Bf3+ {[%clk 0:01:44.8]} 21... Ka6 {[%clk 0:01:34.9]} 22.
Bxd8 {[%clk 0:01:40.9]} 22... Rxd8 {[%clk 0:01:34.1]} 23. Bc6 {[%clk 0:01:37.5]}
23... Be7 {[%clk 0:01:24.2]} 24. Bd7 {[%clk 0:01:37]} 24... Kb6 {[%clk
0:01:22.1]} 25. Kc2 {[%clk 0:01:35.7]} 25... c4 {[%clk 0:01:17.6]} 26. Kc3
{[%clk 0:01:33.8]} 26... Kc5 {[%clk 0:01:15.5]} 27. Re1 {[%clk 0:01:30.2]} 27...
a5 {[%clk 0:01:13.5]} 28. Re4 {[%clk 0:01:29.4]} 28... Kd6 {[%clk 0:01:04.7]}
29. Rxc4 {[%clk 0:01:27.4]} 29... Rb8 {[%clk 0:01:02.4]} 30. b4 {[%clk
0:01:25.8]} 30... axb4+ {[%clk 0:01:01.2]} 31. axb4 {[%clk 0:01:25.6]} 31... Kd5
{[%clk 0:01:00.7]} 32. f3 {[%clk 0:01:18.8]} 32... Ra8 {[%clk 0:00:57.3]} 33.
Bc6+ {[%clk 0:01:16.4]} 33... Kd6 {[%clk 0:00:55.5]} 34. Bxa8 {[%clk 0:01:16]}
34... Kxe6 {[%clk 0:00:55.7]} 1-0

[Event "*** Titled Tuesday Blitz"]
[Site "Chess.com"]
[Date "2020.12.29"]
[Round "5"]
[White "amintabatabaei"]
[Black "elextranjero00"]
[Result "1-0"]
[WhiteElo "2906"]
[BlackElo "2618"]
[TimeControl "180+1"]
[EndTime "10:52:53 PST"]
[Termination "amintabatabaei won by resignation"]

1. d4 {[%clk 0:02:59.8]} 1... Nf6 {[%clk 0:02:59.5]} 2. Nf3 {[%clk 0:03:00.2]}
2... e6 {[%clk 0:02:56.1]} 3. Bf4 {[%clk 0:03:00.6]} 3... d5 {[%clk 0:02:54.3]}
4. e3 {[%clk 0:03:01.1]} 4... Bd6 {[%clk 0:02:54.2]} 5. Nbd2 {[%clk 0:03:01.3]}
5... O-O {[%clk 0:02:51.9]} 6. c3 {[%clk 0:03:01.4]} 6... b6 {[%clk 0:02:51.8]}
7. Ne5 {[%clk 0:03:01.5]} 7... c5 {[%clk 0:02:48.4]} 8. h4 {[%clk 0:03:01.6]}
8... Ba6 {[%clk 0:02:41.9]} 9. Bxa6 {[%clk 0:02:59]} 9... Nxa6 {[%clk 0:02:42]}
10. h5 {[%clk 0:02:59.7]} 10... Qc7 {[%clk 0:02:24.2]} 11. Qf3 {[%clk
0:02:53.1]} 11... Nb8 {[%clk 0:01:49.1]} 12. h6 {[%clk 0:02:50.4]} 12... g6
{[%clk 0:01:49]} 13. O-O-O {[%clk 0:02:08.6]} 13... Nfd7 {[%clk 0:01:39.7]} 14.
e4 {[%clk 0:01:54.6]} 14... Nxe5 {[%clk 0:01:29.6]} 15. dxe5 {[%clk 0:01:51.9]}
15... Bxe5 {[%clk 0:01:27.3]} 16. Bxe5 {[%clk 0:01:41.7]} 16... Qxe5 {[%clk
0:01:27.3]} 17. exd5 {[%clk 0:01:42.6]} 17... exd5 {[%clk 0:01:22.8]} 18. Nc4
{[%clk 0:01:36.3]} 18... Qg5+ {[%clk 0:01:22.6]} 19. Ne3 {[%clk 0:01:36.6]}
19... Rd8 {[%clk 0:00:35]} 20. Kb1 {[%clk 0:01:36.9]} 20... Nc6 {[%clk
0:00:32.5]} 21. Nxd5 {[%clk 0:01:36.9]} 21... Rd6 {[%clk 0:00:26.8]} 22. Rhe1
{[%clk 0:01:27.9]} 22... Rad8 {[%clk 0:00:25.8]} 23. Nf6+ {[%clk 0:01:27.7]} 1-0

[Event "*** Titled Tuesday Blitz"]
[Site "Chess.com"]
[Date "2020.12.29"]
[Round "5"]
[White "Ariadna_Atreides"]
[Black "MasterMK73"]
[Result "0-1"]
[WhiteElo "2069"]
[BlackElo "2252"]
[TimeControl "180+1"]
[EndTime "10:52:54 PST"]
[Termination "MasterMK73 won by resignation"]

1. d4 {[%clk 0:03:00.9]} 1... d5 {[%clk 0:02:58.8]} 2. Nf3 {[%clk 0:03:00.2]}
2... e6 {[%clk 0:02:58.2]} 3. e3 {[%clk 0:02:55.4]} 3... Nf6 {[%clk 0:02:56.8]}
4. Bd3 {[%clk 0:02:54.6]} 4... c5 {[%clk 0:02:55.1]} 5. O-O {[%clk 0:02:53.6]}
5... Nc6 {[%clk 0:02:49.9]} 6. b3 {[%clk 0:02:52.9]} 6... Bd6 {[%clk 0:02:48.1]}
7. Bb2 {[%clk 0:02:52.6]} 7... Qe7 {[%clk 0:02:45.8]} 8. dxc5 {[%clk 0:02:51.9]}
8... Bxc5 {[%clk 0:02:45.1]} 9. Ne5 {[%clk 0:02:48]} 9... Nxe5 {[%clk 0:02:39]}
10. Bxe5 {[%clk 0:02:46.8]} 10... Bd6 {[%clk 0:02:39.6]} 11. Bb2 {[%clk
0:02:27.7]} 11... e5 {[%clk 0:02:38.3]} 12. Bb5+ {[%clk 0:02:24.6]} 12... Bd7
{[%clk 0:02:36.3]} 13. Bxd7+ {[%clk 0:02:23.7]} 13... Qxd7 {[%clk 0:02:36.5]}
14. c4 {[%clk 0:02:22.7]} 14... dxc4 {[%clk 0:02:24]} 15. bxc4 {[%clk
0:02:14.8]} 15... O-O {[%clk 0:02:23]} 16. c5 {[%clk 0:02:06.8]} 16... Bxc5
{[%clk 0:02:19.6]} 17. Qxd7 {[%clk 0:02:04]} 17... Nxd7 {[%clk 0:02:18.6]} 18.
Rd1 {[%clk 0:02:04.4]} 18... Rad8 {[%clk 0:02:13.1]} 19. Nc3 {[%clk 0:01:57.9]}
19... f6 {[%clk 0:02:04.7]} 20. Ne4 {[%clk 0:01:53.9]} 20... Be7 {[%clk
0:02:04]} 21. Kf1 {[%clk 0:01:43.4]} 21... Nb6 {[%clk 0:01:47.2]} 22. Rac1
{[%clk 0:01:41]} 22... Nd5 {[%clk 0:01:28.5]} 23. Nc5 {[%clk 0:01:31.5]} 23...
Bxc5 {[%clk 0:01:26.8]} 24. Rxc5 {[%clk 0:01:30.5]} 24... Nb6 {[%clk 0:01:18.8]}
25. Rxd8 {[%clk 0:01:18.3]} 25... Rxd8 {[%clk 0:01:17.8]} 26. Rc7 {[%clk
0:01:15.9]} 26... Rd7 {[%clk 0:01:17.6]} 27. Rc2 {[%clk 0:01:13.5]} 27... Kf7
{[%clk 0:01:15.5]} 28. Ke2 {[%clk 0:01:12.8]} 28... Nd5 {[%clk 0:01:11.8]} 29.
Ba3 {[%clk 0:01:09.6]} 29... Ke6 {[%clk 0:01:10.3]} 30. Rc8 {[%clk 0:01:08.2]}
30... Nc7 {[%clk 0:01:00.4]} 31. Re8+ {[%clk 0:01:01.2]} 31... Nxe8 {[%clk
0:00:59.8]} 0-1

[Event "*** Titled Tuesday Blitz"]
[Site "Chess.com"]
[Date "2020.12.29"]
[Round "5"]
[White "Shepherdboy"]
[Black "NateSolon"]
[Result "1-0"]
[WhiteElo "2342"]
[BlackElo "2493"]
[TimeControl "180+1"]
[EndTime "10:52:57 PST"]
[Termination "Shepherdboy won by resignation"]

1. Nf3 {[%clk 0:03:00.9]} 1... d5 {[%clk 0:02:58.5]} 2. d4 {[%clk 0:02:59.8]}
2... Nf6 {[%clk 0:02:58.3]} 3. c3 {[%clk 0:02:58.3]} 3... e6 {[%clk 0:02:53.3]}
4. Bf4 {[%clk 0:02:55.5]} 4... c5 {[%clk 0:02:52.8]} 5. e3 {[%clk 0:02:54]} 5...
Bd6 {[%clk 0:02:51.1]} 6. Bxd6 {[%clk 0:02:50.2]} 6... Qxd6 {[%clk 0:02:51.1]}
7. Nbd2 {[%clk 0:02:50.7]} 7... Nc6 {[%clk 0:02:47.1]} 8. Bd3 {[%clk 0:02:49.7]}
8... O-O {[%clk 0:02:45.6]} 9. O-O {[%clk 0:02:36.2]} 9... e5 {[%clk 0:02:42.6]}
10. dxe5 {[%clk 0:02:37.1]} 10... Nxe5 {[%clk 0:02:42.9]} 11. Nxe5 {[%clk
0:02:32.7]} 11... Qxe5 {[%clk 0:02:43.8]} 12. Qc2 {[%clk 0:02:29.9]} 12... Re8
{[%clk 0:02:32.9]} 13. c4 {[%clk 0:02:24.8]} 13... b6 {[%clk 0:02:21.8]} 14.
cxd5 {[%clk 0:02:21.8]} 14... Qxd5 {[%clk 0:02:19.2]} 15. Rad1 {[%clk
0:02:14.5]} 15... Bb7 {[%clk 0:02:17.7]} 16. f3 {[%clk 0:02:10.9]} 16... Qg5
{[%clk 0:01:51]} 17. e4 {[%clk 0:02:04.1]} 17... Nh5 {[%clk 0:01:37.3]} 18. Nc4
{[%clk 0:01:55]} 18... Rad8 {[%clk 0:01:29.6]} 19. Rfe1 {[%clk 0:01:52]} 19...
Nf4 {[%clk 0:01:23.8]} 20. Bf1 {[%clk 0:01:52]} 20... Ba6 {[%clk 0:00:27.8]} 21.
g3 {[%clk 0:01:43.6]} 21... Ne6 {[%clk 0:00:22.4]} 22. Nd6 {[%clk 0:01:38.5]}
22... Bxf1 {[%clk 0:00:13]} 23. Rxf1 {[%clk 0:01:39.4]} 23... Rf8 {[%clk
0:00:10]} 24. Nf5 {[%clk 0:01:39.4]} 24... g6 {[%clk 0:00:09.4]} 25. f4 {[%clk
0:01:35.8]} 25... Qg4 {[%clk 0:00:04.8]} 26. Nh6+ {[%clk 0:01:33.2]} 1-0

[Event "*** Titled Tuesday Blitz"]
[Site "Chess.com"]
[Date "2020.12.29"]
[Round "5"]
[White "bocah_sakit"]
[Black "GigaQuparadze"]
[Result "1-0"]
[WhiteElo "2834"]
[BlackElo "2888"]
[TimeControl "180+1"]
[EndTime "10:52:59 PST"]
[Termination "bocah_sakit won by resignation"]

1. e4 {[%clk 0:03:00.9]} 1... c5 {[%clk 0:02:59.3]} 2. Nf3 {[%clk 0:03:01.3]}
2... e6 {[%clk 0:02:59.4]} 3. d4 {[%clk 0:03:01.6]} 3... cxd4 {[%clk 0:02:59.9]}
4. Nxd4 {[%clk 0:03:02.5]} 4... a6 {[%clk 0:02:59.9]} 5. Bd3 {[%clk 0:03:02.8]}
5... Nf6 {[%clk 0:02:58.9]} 6. O-O {[%clk 0:03:02.4]} 6... Qc7 {[%clk
0:02:59.1]} 7. Qe2 {[%clk 0:03:01.1]} 7... d6 {[%clk 0:02:59.1]} 8. Nc3 {[%clk
0:03:00.2]} 8... g6 {[%clk 0:02:58.2]} 9. f4 {[%clk 0:02:57.4]} 9... Nbd7 {[%clk
0:02:57.5]} 10. Kh1 {[%clk 0:02:57.6]} 10... Bg7 {[%clk 0:02:56.6]} 11. f5
{[%clk 0:02:43.6]} 11... Ne5 {[%clk 0:02:54.6]} 12. fxe6 {[%clk 0:02:27.8]}
12... fxe6 {[%clk 0:02:55.3]} 13. Bh6 {[%clk 0:02:22.5]} 13... Bxh6 {[%clk
0:02:49.6]} 14. Rxf6 {[%clk 0:02:22.8]} 14... Qe7 {[%clk 0:02:49.7]} 15. Raf1
{[%clk 0:02:15.4]} 15... Bg7 {[%clk 0:02:49.2]} 16. R6f2 {[%clk 0:02:11.2]}
16... Bd7 {[%clk 0:02:49.2]} 17. Nb3 {[%clk 0:01:59.4]} 17... Nc6 {[%clk
0:02:36.1]} 18. Qe3 {[%clk 0:01:48.9]} 18... Be5 {[%clk 0:02:00.1]} 19. g3
{[%clk 0:01:26.5]} 19... Bxc3 {[%clk 0:01:42.7]} 20. bxc3 {[%clk 0:01:25.9]}
20... Ne5 {[%clk 0:01:42.9]} 21. Qb6 {[%clk 0:01:20.8]} 21... Bc6 {[%clk
0:01:42.9]} 22. Nd4 {[%clk 0:01:20.5]} 22... Rc8 {[%clk 0:01:34.9]} 23. Rf6
{[%clk 0:01:10.5]} 23... Nd7 {[%clk 0:01:30.6]} 24. Nxc6 {[%clk 0:00:53.4]}
24... bxc6 {[%clk 0:01:28.8]} 25. Qb7 {[%clk 0:00:49.9]} 25... Qd8 {[%clk
0:00:59.6]} 26. Rxe6+ {[%clk 0:00:47.7]} 1-0

[Event "*** Titled Tuesday Blitz"]
[Site "Chess.com"]
[Date "2020.12.29"]
[Round "5"]
[White "Kildepiotr"]
[Black "szefru"]
[Result "1-0"]
[WhiteElo "2612"]
[BlackElo "2196"]
[TimeControl "180+1"]
[EndTime "10:53:03 PST"]
[Termination "Kildepiotr won by resignation"]

1. Nf3 {[%clk 0:03:00.9]} 1... d5 {[%clk 0:02:58.1]} 2. g3 {[%clk 0:02:59.8]}
2... Nf6 {[%clk 0:02:56.8]} 3. Bg2 {[%clk 0:02:59.9]} 3... c6 {[%clk 0:02:56.6]}
4. O-O {[%clk 0:03:00.4]} 4... Bf5 {[%clk 0:02:55.5]} 5. d3 {[%clk 0:03:00.8]}
5... Nbd7 {[%clk 0:02:55.4]} 6. Nbd2 {[%clk 0:03:01.3]} 6... e6 {[%clk
0:02:55.3]} 7. Qe1 {[%clk 0:03:01.4]} 7... h5 {[%clk 0:02:54.4]} 8. e4 {[%clk
0:03:00.6]} 8... Bh7 {[%clk 0:02:51.7]} 9. Ng5 {[%clk 0:02:59.4]} 9... Bg6
{[%clk 0:02:45.5]} 10. h3 {[%clk 0:02:59.2]} 10... Be7 {[%clk 0:02:42.4]} 11. e5
{[%clk 0:02:50.8]} 11... Nh7 {[%clk 0:02:38.6]} 12. Nxh7 {[%clk 0:02:50.5]}
12... Rxh7 {[%clk 0:02:33.3]} 13. f4 {[%clk 0:02:47.9]} 13... Bf5 {[%clk
0:02:24.9]} 14. Nf3 {[%clk 0:02:44.9]} 14... Qb6+ {[%clk 0:02:17.8]} 15. Kh2
{[%clk 0:02:43.9]} 15... O-O-O {[%clk 0:02:13.4]} 16. a3 {[%clk 0:02:41.2]}
16... Bg4 {[%clk 0:02:04.3]} 17. b4 {[%clk 0:02:37.6]} 17... Rdh8 {[%clk
0:01:54.8]} 18. Be3 {[%clk 0:02:36.7]} 18... Qd8 {[%clk 0:01:47.5]} 19. a4
{[%clk 0:02:26.7]} 19... h4 {[%clk 0:01:39.7]} 20. hxg4 {[%clk 0:02:18.5]} 20...
hxg3+ {[%clk 0:01:36.2]} 21. Kg1 {[%clk 0:02:18.3]} 21... Rh3 {[%clk 0:01:15.6]}
22. Bxh3 {[%clk 0:02:07.8]} 22... Rxh3 {[%clk 0:01:16.5]} 23. Kg2 {[%clk
0:02:08.1]} 23... Qh8 {[%clk 0:01:02.2]} 24. Rh1 {[%clk 0:02:07.2]} 24... Rh2+
{[%clk 0:00:53.5]} 25. Nxh2 {[%clk 0:02:02.6]} 25... gxh2 {[%clk 0:00:54.4]} 26.
Rxh2 {[%clk 0:02:02.8]} 26... Qf8 {[%clk 0:00:52.2]} 27. Qh1 {[%clk 0:02:01.4]}
27... Qd8 {[%clk 0:00:42.8]} 28. Rh8 {[%clk 0:02:00.9]} 28... Nf8 {[%clk
0:00:43.7]} 29. Qg1 {[%clk 0:01:55.2]} 29... d4 {[%clk 0:00:36.7]} 30. Bxd4
{[%clk 0:01:53.7]} 30... Qd5+ {[%clk 0:00:36.3]} 31. Kg3 {[%clk 0:01:53.4]}
31... Kd7 {[%clk 0:00:33.7]} 32. Rxf8 {[%clk 0:01:48.8]} 32... Bxf8 {[%clk
0:00:32.6]} 33. Bc5 {[%clk 0:01:46.3]} 33... Bxc5 {[%clk 0:00:17.6]} 34. Qxc5
{[%clk 0:01:47.2]} 1-0

[Event "*** Titled Tuesday Blitz"]
[Site "Chess.com"]
[Date "2020.12.29"]
[Round "5"]
[White "PSvidler"]
[Black "biostatistician"]
[Result "1-0"]
[WhiteElo "2827"]
[BlackElo "2604"]
[TimeControl "180+1"]
[EndTime "10:53:04 PST"]
[Termination "PSvidler won by checkmate"]

1. e4 {[%clk 0:03:00.9]} 1... e6 {[%clk 0:02:57.7]} 2. d4 {[%clk 0:03:00.5]}
2... d5 {[%clk 0:02:55.7]} 3. Nd2 {[%clk 0:03:00.4]} 3... Nc6 {[%clk 0:02:54.9]}
4. Ngf3 {[%clk 0:02:59.6]} 4... Nf6 {[%clk 0:02:54.3]} 5. e5 {[%clk 0:02:59.7]}
5... Ne4 {[%clk 0:02:54.6]} 6. c3 {[%clk 0:02:52.6]} 6... f5 {[%clk 0:02:52.5]}
7. exf6 {[%clk 0:02:39]} 7... Nxf6 {[%clk 0:02:48.9]} 8. Bd3 {[%clk 0:02:38.4]}
8... Bd6 {[%clk 0:02:49.1]} 9. O-O {[%clk 0:02:38.2]} 9... O-O {[%clk
0:02:48.3]} 10. Re1 {[%clk 0:02:37.6]} 10... Qe8 {[%clk 0:02:45.9]} 11. Nf1
{[%clk 0:02:33.5]} 11... Qh5 {[%clk 0:02:45.2]} 12. Ng3 {[%clk 0:02:29.7]} 12...
Bxg3 {[%clk 0:02:44.9]} 13. fxg3 {[%clk 0:02:29.9]} 13... Bd7 {[%clk 0:02:37.3]}
14. Bf4 {[%clk 0:02:27.7]} 14... Rac8 {[%clk 0:02:32.7]} 15. h3 {[%clk
0:02:26.8]} 15... Qe8 {[%clk 0:02:26.2]} 16. Qc2 {[%clk 0:02:23.8]} 16... h6
{[%clk 0:02:13.4]} 17. Bg6 {[%clk 0:02:22]} 17... Qd8 {[%clk 0:02:11.7]} 18. Re2
{[%clk 0:02:13.4]} 18... Ne7 {[%clk 0:02:04.3]} 19. Bd3 {[%clk 0:02:11.9]} 19...
c5 {[%clk 0:02:01.6]} 20. dxc5 {[%clk 0:02:11.1]} 20... Rxc5 {[%clk 0:02:01.4]}
21. Rae1 {[%clk 0:02:10.5]} 21... a6 {[%clk 0:01:53.6]} 22. Nd4 {[%clk
0:02:06.4]} 22... Nc6 {[%clk 0:01:31.6]} 23. Qb3 {[%clk 0:01:44.9]} 23... Nxd4
{[%clk 0:00:22]} 24. cxd4 {[%clk 0:01:44.7]} 24... Ra5 {[%clk 0:00:22.5]} 25.
Qxb7 {[%clk 0:01:39.9]} 25... Rxa2 {[%clk 0:00:22.3]} 26. Bd6 {[%clk 0:01:39.5]}
26... Re8 {[%clk 0:00:22.2]} 27. Bg6 {[%clk 0:01:38.5]} 27... Qa5 {[%clk
0:00:17.3]} 28. Bxe8 {[%clk 0:01:35.4]} 28... Bxe8 {[%clk 0:00:16.7]} 29. Be5
{[%clk 0:01:33.7]} 29... Ne4 {[%clk 0:00:15.7]} 30. Qxg7# {[%clk 0:01:32.8]} 1-0